{"text_format":"1","workbook":"xlsx","n_sheets":5,"sheets":["Paste Link","Desktop File","Cloud","Defined Name","VBA"],"not_rendered":{"charts":0,"images":0,"macros":1,"external_links":2,"defined_names":0,"comments":0,"pivot_tables":0},"unopened":[],"bounds":{"document_bytes":16777216,"sheet_cells":100000,"rows_first":2000,"rows_last":500,"rows_between":2000,"halvings":0,"cell_chars":16384,"cell_head_chars":4096},"cells_cut":0,"cells_raw":0,"read":"whole","date_system":"1900"}

{"sheet":"Paste Link","index":0,"n_rows":9,"n_cols":4,"rows_kept":9,"cut":false,"hidden":false,"merged":[[1,1,1,2]]}
[]
[null,"Open Worksheet"]
[]
[null,"Name","Price"]
[null,{"$f":"[1]Sheet1!B5","v":"Orange"},{"$f":"[1]Sheet1!C5","v":1}]
[null,{"$f":"[1]Sheet1!B6","v":"Apple"},{"$f":"[1]Sheet1!C6","v":1.5}]
[null,{"$f":"[1]Sheet1!B7","v":"Avocado"},{"$f":"[1]Sheet1!C7","v":2}]
[null,{"$f":"[1]Sheet1!B8","v":"Banana"},{"$f":"[1]Sheet1!C8","v":6}]
[null,{"$f":"[1]Sheet1!B9","v":"Blackberries"},{"$f":"[1]Sheet1!C9","v":5},{"$f":"_xlfn.FORMULATEXT(C9)","v":"='C:\\Users\\Alok\\Desktop\\25-0056-1688\\[Closed.xlsm]Sheet1'!C9"}]

{"sheet":"Desktop File","index":1,"n_rows":5,"n_cols":3,"rows_kept":5,"cut":false,"hidden":false,"merged":[[1,1,1,2]]}
[]
[null,"Open Worksheet"]
[]
[null,"Name","Price"]
[null,{"$f":"[1]Sheet1!B5","v":"Orange"}]

{"sheet":"Cloud","index":2,"n_rows":9,"n_cols":4,"rows_kept":9,"cut":false,"hidden":false,"merged":[[1,1,1,2]]}
[]
[null,"Open Worksheet"]
[]
[null,"Name","Price"]
[null,{"$f":"[2]Sheet!B5","v":"Orange"},{"$f":"[2]Sheet!C5","v":1}]
[null,{"$f":"[2]Sheet!B6","v":"Apple"},{"$f":"[2]Sheet!C6","v":1.5}]
[null,{"$f":"[2]Sheet!B7","v":"Avocado"},{"$f":"[2]Sheet!C7","v":2}]
[null,{"$f":"[2]Sheet!B8","v":"Banana"},{"$f":"[2]Sheet!C8","v":6}]
[null,{"$f":"[2]Sheet!B9","v":"Blackberries"},{"$f":"[2]Sheet!C9","v":5},{"$f":"_xlfn.FORMULATEXT(C9)","v":"='https://d.docs.live.net/03e01967881debf5/Softeko/25-0056-1688/[Sample.xlsm]Sheet'!C9"}]

{"sheet":"Defined Name","index":3,"n_rows":9,"n_cols":3,"rows_kept":9,"cut":false,"hidden":false,"merged":[[1,1,1,2]]}
[]
[null,"Open Worksheet"]
[]
[null,"Name","Price"]
[null,{"$f":"[1]Sheet1!Fruit","v":"Orange"},1]
[null,"Apple",1.5]
[null,"Avocado",2]
[null,"Banana",6]
[null,"Blackberries",5]

{"sheet":"VBA","index":4,"n_rows":9,"n_cols":3,"rows_kept":9,"cut":false,"hidden":false,"merged":[]}
[]
[null,"Closed Woksheet to Refer"]
[]
[null,"Name","Price"]
[null,"Orange",1]
[null,"Apple",1.5]
[null,"Avocado",2]
[null,"Banana",6]
[null,"Blackberries",5]